bitfinex/quotes_BTCUSD_20250928
["timestamp","ask_amount","ask_price","bid_price","bid_amount"]
[1759028357033,7.24605367,109760.0,109750.0,0.09684999]
[1759028357231,7.42826941,109760.0,109750.0,0.09684999]
[1759028357633,7.14398941,109760.0,109750.0,0.09684999]
[1759028357936,7.4139736,109760.0,109750.0,0.09684999]
[1759028360445,7.4139736,109760.0,109750.0,0.09886999]
[1759028360649,7.4139736,109760.0,109750.0,0.10194999]
[1759028361061,7.42826952,109760.0,109750.0,0.10194999]
[1759028362516,6.97744766,109760.0,109750.0,0.10194999]
[1759028362715,7.26168766,109760.0,109750.0,0.10194999]
[1759028363998,7.2996089,109760.0,109750.0,0.10194999]
[1759028366551,7.28531298,109760.0,109750.0,0.10194999]
[1759028367449,7.00107298,109760.0,109750.0,0.10194999]
[1759028367630,7.28531298,109760.0,109750.0,0.10194999]
[1759028370518,7.28571785,109760.0,109750.0,0.10194999]
[1759028370948,7.30001366,109760.0,109750.0,0.10194999]
[1759028371558,7.01577366,109760.0,109750.0,0.10194999]
[1759028371776,7.30001366,109760.0,109750.0,0.10194999]
[1759028374402,7.30643518,109760.0,109750.0,0.10194999]
[1759028375579,7.30643518,109760.0,109750.0,0.09886999]
[1759028377407,7.29213937,109760.0,109750.0,0.09886999]
[1759028379620,7.29213937,109760.0,109750.0,0.09684999]
[1759028380239,7.30643518,109760.0,109750.0,0.09684999]
[1759028382550,7.30603031,109760.0,109750.0,0.09684999]
[1759028383058,7.30643552,109760.0,109750.0,0.09684999]
[1759028385296,7.02219552,109760.0,109750.0,0.09684999]
[1759028385515,7.30639552,109760.0,109750.0,0.10194999]
[1759028387169,7.29209971,109760.0,109750.0,0.10194999]
[1759028389915,7.12338171,109760.0,109750.0,0.10194999]
[1759028390132,7.13767752,109760.0,109750.0,0.10194999]
[1759028394315,6.96498865,109760.0,109750.0,0.10194999]
[1759028394500,6.68078865,109760.0,109750.0,0.10194999]
[1759028394719,6.96498865,109760.0,109750.0,0.10194999]
[1759028395280,6.68078865,109760.0,109750.0,0.10194999]
[1759028395489,6.96498865,109760.0,109750.0,0.10194999]
[1759028396785,6.95069284,109760.0,109750.0,0.10194999]
[1759028397770,6.98842355,109760.0,109750.0,0.10194999]
[1759028398477,6.70426355,109760.0,109750.0,0.10194999]
[1759028398697,6.98842355,109760.0,109750.0,0.10194999]
[1759028399413,6.64998871,109760.0,109750.0,0.10194999]
[1759028399643,7.11636445,109760.0,109750.0,0.10194999]
[1759028400555,6.93414871,109760.0,109750.0,0.10194999]
[1759028401375,6.94844433,109760.0,109750.0,0.10194999]
[1759028401608,6.66428433,109760.0,109750.0,0.10194999]
[1759028401786,6.94844433,109760.0,109750.0,0.13210189]
[1759028402008,6.66428433,109760.0,109750.0,0.13210189]
[1759028402357,6.94844433,109760.0,109750.0,0.15032512]
[1759028402558,6.66428433,109760.0,109750.0,0.15032512]
[1759028402777,6.94844433,109760.0,109750.0,0.13210189]
[1759028404438,6.66428433,109760.0,109750.0,0.15032512]
[1759028404644,6.94844433,109760.0,109750.0,0.13210189]
[1759028405466,6.94844433,109760.0,109750.0,0.39660189]
[1759028406295,6.95485788,109760.0,109750.0,0.39660189]
[1759028407696,6.95485734,109760.0,109750.0,0.39660189]
[1759028420351,6.94056172,109760.0,109750.0,0.39660189]
[1759028423283,6.95485652,109760.0,109750.0,0.39660189]
[1759028425045,6.95477652,109760.0,109750.0,0.39660189]
[1759028425285,6.67069652,109760.0,109750.0,0.39660189]
[1759028425689,6.95477652,109760.0,109750.0,0.39660189]
[1759028426127,6.67069652,109760.0,109750.0,0.39660189]
[1759028426347,6.95477652,109760.0,109750.0,0.39660189]
[1759028426760,6.94048172,109760.0,109750.0,0.39660189]
[1759028428051,6.65640172,109760.0,109750.0,0.39660189]
[1759028428493,6.94048172,109760.0,109750.0,0.39660189]
[1759028429895,6.95477637,109760.0,109750.0,0.39660189]
[1759028430324,6.67069637,109760.0,109750.0,0.39660189]
[1759028430509,6.95477637,109760.0,109750.0,0.39660189]
[1759028436487,6.94048172,109760.0,109750.0,0.39660189]
[1759028436706,6.94048172,109760.0,109750.0,0.68064189]
[1759028438548,6.75425072,109760.0,109750.0,0.68064189]
[1759028438755,6.75402294,109760.0,109750.0,0.68064189]
[1759028439213,0.32803594,109760.0,109750.0,0.68064189]
[1759028439817,0.05825047,109760.0,109750.0,0.68064189]
[1759028440304,0.05825047,109760.0,109750.0,0.39660189]
[1759028440500,0.05825047,109760.0,109750.0,0.68064189]
[1759028448025,0.05825047,109760.0,109750.0,0.39660189]
[1759028448277,0.05825047,109760.0,109750.0,0.68064189]
[1759028450012,8.05825047,109760.0,109750.0,0.68064189]
[1759028450300,8.04395594,109760.0,109750.0,0.68064189]
[1759028458707,8.04395594,109760.0,109750.0,0.86287423]
[1759028458954,0.04395594,109760.0,109750.0,0.86287423]
[1759028459793,0.04395594,109760.0,109750.0,0.86187423]
[1759028460207,0.04395594,109760.0,109750.0,0.86487423]
[1759028460624,0.04395594,109760.0,109750.0,0.86687423]
[1759028463312,0.03754293,109760.0,109750.0,0.86687423]
[1759028463430,0.03754293,109760.0,109750.0,0.86679423]
[1759028463659,4.647e-05,109770.0,109760.0,0.0301519]
[1759028463864,0.00646345,109770.0,109760.0,0.31594347]
[1759028464112,0.00646345,109770.0,109760.0,0.3233419]
[1759028464367,0.043174,109770.0,109760.0,0.35075777]
[1759028464715,0.044174,109770.0,109760.0,0.35075777]
[1759028465612,0.044174,109770.0,109760.0,0.35175777]
[1759028466704,0.044174,109770.0,109760.0,0.63571777]
[1759028467947,0.044174,109770.0,109760.0,0.81793351]
[1759028468718,0.14459975,109800.0,109760.0,0.53397351]
[1759028468927,8.0,109790.0,109760.0,0.51032351]
[1759028469148,8.0,109790.0,109770.0,0.02365]
[1759028469417,14.425987,109790.0,109770.0,0.05106588]
[1759028469777,14.74734565,109790.0,109770.0,0.02365]
[1759028469982,14.425987,109780.0,109770.0,0.02365]
[1759028470214,6.425987,109780.0,109770.0,0.02365]
[1759028470413,6.425987,109780.0,109770.0,0.05106588]
[1759028470835,6.44027944,109780.0,109770.0,0.05106588]
[1759028471363,6.425987,109780.0,109770.0,0.05106588]
[1759028471779,6.429987,109780.0,109770.0,0.05106588]
[1759028474216,6.44427933,109780.0,109770.0,0.05106588]
[1759028475660,6.44427933,109780.0,109770.0,0.14689769]
[1759028475882,6.44427933,109780.0,109770.0,0.33218683]
[1759028476116,6.44427933,109780.0,109770.0,0.31396692]
[1759028476356,6.429987,109780.0,109770.0,0.31396692]
[1759028477253,6.425987,109780.0,109770.0,0.31396692]
[1759028477455,6.425987,109780.0,109770.0,0.31896692]
[1759028478425,6.425987,109780.0,109770.0,0.32396692]
[1759028491960,6.425987,109780.0,109770.0,0.60784692]
[1759028494012,6.25348021,109780.0,109770.0,0.60784692]
[1759028494238,0.32127865,109790.0,109780.0,0.0756219]
[1759028494444,8.32768606,109790.0,109780.0,0.0756219]
[1759028494646,8.32768606,109790.0,109780.0,0.1003419]
[1759028495057,8.32768606,109790.0,109780.0,0.12775389]
[1759028495422,8.32768606,109790.0,109780.0,0.13075389]
[1759028496022,8.04380606,109790.0,109780.0,0.13075389]
[1759028496235,8.32768606,109790.0,109780.0,0.13075389]
[1759028496481,8.04380606,109790.0,109780.0,0.13275389]
[1759028496661,8.04380606,109790.0,109780.0,0.13480389]
[1759028496873,0.04380606,109790.0,109780.0,0.13799389]
[1759028497288,0.04380606,109790.0,109780.0,0.42183389]
[1759028498222,0.04376051,109790.0,109780.0,0.42183389]
[1759028500267,0.05164317,109790.0,109780.0,0.42183389]
[1759028500469,0.05805277,109790.0,109780.0,0.42183389]
[1759028503935,0.05805277,109790.0,109780.0,0.13799389]
[1759028504142,0.05805277,109790.0,109780.0,0.42183389]
[1759028505124,8.55805585,109790.0,109780.0,0.42183389]
[1759028505327,0.05805585,109790.0,109780.0,0.42183389]
[1759028505526,8.55805585,109790.0,109780.0,0.42183389]
[1759028505729,0.05805585,109790.0,109780.0,0.42183389]
[1759028505925,0.55805585,109790.0,109780.0,0.42183389]
[1759028506127,8.55805585,109790.0,109780.0,0.42183389]
[1759028506335,0.05805585,109790.0,109780.0,0.42183389]
[1759028506535,0.54376578,109790.0,109780.0,0.42183389]
[1759028512579,0.04376578,109790.0,109780.0,0.42183389]
[1759028513611,8.04376578,109790.0,109780.0,0.42183389]
[1759028514569,8.22593173,109790.0,109780.0,0.13275389]
[1759028514783,8.04376578,109790.0,109780.0,0.13275389]
[1759028515300,8.50977173,109790.0,109780.0,0.39725389]
[1759028515932,8.32760578,109790.0,109780.0,0.39725389]
[1759028516562,8.50977173,109790.0,109780.0,0.39725389]
[1759028517320,8.32760578,109790.0,109780.0,0.39725389]
[1759028520967,8.50977173,109790.0,109780.0,0.39725389]
[1759028522880,8.52406265,109790.0,109780.0,0.39725389]
[1759028523768,8.5484559,109790.0,109780.0,0.33969]
[1759028523978,8.55069853,109790.0,109780.0,0.33969]
[1759028524573,8.55069853,109790.0,109780.0,0.33769]
[1759028524574,8.67303536,109790.0,109780.0,0.33769]
[1759028524800,8.67079273,109790.0,109780.0,0.28922]
[1759028525015,8.67179273,109790.0,109780.0,0.29022]
[1759028525459,8.67179273,109790.0,109780.0,0.28922]
[1759028525642,8.67079273,109790.0,109780.0,0.02472]
[1759028525836,8.67479273,109790.0,109780.0,0.02472]
[1759028527688,8.67483273,109790.0,109780.0,0.02472]
[1759028528151,8.66054181,109790.0,109780.0,0.02472]
[1759028528372,8.28174181,109790.0,109780.0,0.02472]
[1759028528578,8.66054181,109790.0,109780.0,0.02472]
[1759028531037,8.29603498,109790.0,109780.0,0.02472]
[1759028531233,8.67483498,109790.0,109780.0,0.02472]
[1759028532095,8.29603498,109790.0,109780.0,0.02472]
[1759028532225,8.65044173,109790.0,109780.0,0.02472]
[1759028533034,16.27164173,109790.0,109780.0,0.02472]
[1759028533393,16.65044173,109790.0,109780.0,0.02472]
[1759028533736,16.27164173,109790.0,109780.0,0.02472]
[1759028534028,8.27164173,109790.0,109780.0,0.02965]
[1759028534242,8.55548173,109790.0,109780.0,0.02965]
[1759028534882,8.55148173,109790.0,109780.0,0.02965]
[1759028535319,8.55148173,109790.0,109780.0,0.0297]
[1759028535463,8.55148173,109790.0,109780.0,0.0327]
[1759028536572,8.26764173,109790.0,109780.0,0.0327]
[1759028536779,8.55148173,109790.0,109780.0,0.0327]
[1759028536982,8.37993299,109790.0,109780.0,0.0327]
[1759028537392,8.36563982,109790.0,109780.0,0.0327]
[1759028539068,8.40280016,109790.0,109780.0,0.0327]
[1759028540477,8.37538333,109790.0,109780.0,0.0327]
[1759028540881,8.39977658,109790.0,109780.0,0.03072]
[1759028541503,8.42719375,109790.0,109780.0,0.03072]
[1759028541725,8.44148639,109790.0,109780.0,0.03072]
[1759028541933,8.44148639,109790.0,109780.0,0.02772]
[1759028542354,8.44148639,109790.0,109780.0,0.02472]
[1759028542557,8.44148639,109790.0,109780.0,0.02672]
[1759028547326,8.42719375,109790.0,109780.0,0.02672]
[1759028547768,8.39977658,109790.0,109780.0,0.02672]
[1759028550479,8.41406937,109790.0,109780.0,0.02672]
[1759028550679,8.42047939,109790.0,109780.0,0.02672]
[1759028557928,8.4061866,109790.0,109780.0,0.02672]
[1759028561100,8.42047939,109790.0,109780.0,0.02672]
[1759028561977,8.13663939,109790.0,109780.0,0.0288]
[1759028562183,8.13663939,109790.0,109780.0,0.03191]
[1759028562495,8.42047939,109790.0,109780.0,0.03191]
[1759028566224,8.42047939,109790.0,109780.0,0.0288]
[1759028566583,8.42047939,109790.0,109780.0,0.03191]
[1759028567288,8.42047939,109790.0,109780.0,0.0288]
[1759028568689,8.39608614,109790.0,109780.0,0.07738]
[1759028572200,8.39608614,109790.0,109780.0,0.07219]
[1759028572426,8.42047939,109790.0,109780.0,0.07219]
[1759028573521,8.05786315,109790.0,109780.0,0.07747]
[1759028573727,8.04357036,109790.0,109780.0,0.07747]
[1759028574127,8.04357036,109790.0,109780.0,0.1076219]
[1759028574552,8.04357036,109790.0,109780.0,0.28980444]
[1759028574744,0.04357036,109790.0,109780.0,0.28780444]
[1759028574947,0.03716034,109790.0,109780.0,0.32021463]
[1759028575154,0.28388648,109800.0,109780.0,0.32521463]
[1759028575350,8.0,109790.0,109780.0,0.32202463]
[1759028575659,8.03680579,109790.0,109780.0,0.32202463]
[1759028575841,0.03680579,109790.0,109780.0,0.32202463]
[1759028576059,0.28388648,109800.0,109790.0,0.04547]
[1759028576268,8.29029564,109800.0,109790.0,0.04866]
[1759028576440,8.28388648,109800.0,109790.0,0.07475]
[1759028576653,8.29817599,109800.0,109790.0,0.07475]
[1759028577859,8.28388648,109800.0,109790.0,0.07475]
[1759028578124,8.28388648,109800.0,109790.0,0.07775]
[1759028578388,8.28388648,109800.0,109790.0,0.08075]
[1759028578599,8.32097557,109800.0,109790.0,0.08075]
[1759028580366,8.11071435,109800.0,109790.0,0.08075]
[1759028580616,8.32092909,109800.0,109790.0,0.08075]
[1759028580830,8.03708909,109800.0,109790.0,0.1109019]
[1759028581047,8.33517855,109800.0,109790.0,0.12911849]
[1759028587230,8.33517855,109800.0,109790.0,0.1109019]
[1759028588209,8.05137855,109800.0,109790.0,0.12911849]
[1759028588419,8.33517855,109800.0,109790.0,0.1109019]
[1759028592629,8.32088909,109800.0,109790.0,0.3754019]
[1759028595587,8.33517866,109800.0,109790.0,0.3754019]
[1759028598436,8.34157745,109800.0,109790.0,0.3754019]
[1759028599546,8.30448836,109800.0,109790.0,0.3754019]
[1759028599966,8.00639879,109800.0,109790.0,0.3754019]
[1759028600622,8.00639879,109800.0,109790.0,0.40280921]
[1759028600936,0.00639879,109800.0,109790.0,0.40280921]
[1759028601164,0.2838,109810.0,109800.0,0.0301519]
[1759028601165,0.29020234,109810.0,109800.0,0.0301519]
[1759028601370,8.29020251,109810.0,109800.0,0.0332319]
[1759028601570,8.29020251,109810.0,109800.0,0.0585119]
[1759028602874,8.30449162,109810.0,109800.0,0.0585119]
[1759028603471,8.34118124,109810.0,109800.0,0.07672683]
[1759028603753,8.34118124,109810.0,109800.0,0.08172683]
[1759028603929,8.34118124,109810.0,109800.0,0.08372683]
[1759028604146,8.34118124,109810.0,109800.0,0.08172683]
[1759028604339,8.34118124,109810.0,109800.0,0.08672683]
[1759028604552,8.34118124,109810.0,109800.0,0.0685119]
[1759028606903,8.05738124,109810.0,109800.0,0.0685119]
[1759028607100,8.34114124,109810.0,109800.0,0.0685119]
[1759028610762,8.05738124,109810.0,109800.0,0.0654319]
[1759028610984,8.34114124,109810.0,109800.0,0.0685119]
[1759028612887,8.32685213,109810.0,109800.0,0.0685119]
[1759028613350,8.04309213,109810.0,109800.0,0.0685119]
[1759028613536,8.32689213,109810.0,109800.0,0.0685119]
[1759028613803,0.04309213,109810.0,109800.0,0.3784819]
[1759028614201,0.04309213,109810.0,109800.0,0.6622819]
[1759028614568,0.54309213,109810.0,109800.0,0.6623219]
[1759028614747,0.04309213,109810.0,109800.0,0.3784819]
[1759028614947,0.04309213,109810.0,109800.0,0.6622819]
[1759028615827,0.05738022,109810.0,109800.0,0.6622819]
[1759028616975,0.04309213,109810.0,109800.0,0.6622819]
[1759028617405,0.04309213,109810.0,109800.0,0.3784819]
[1759028617624,0.04309213,109810.0,109800.0,0.6622819]
[1759028618164,0.04305213,109810.0,109800.0,0.6622819]
[1759028620311,0.05734018,109810.0,109800.0,0.6622819]
[1759028623387,0.05097767,109810.0,109800.0,0.6622819]
[1759028624240,0.05097767,109810.0,109800.0,0.3784819]
[1759028624558,0.05097767,109810.0,109800.0,0.6622419]
[1759028625099,0.05097767,109810.0,109800.0,0.3784819]
[1759028625309,0.05097767,109810.0,109800.0,0.6622419]
[1759028625720,0.03668962,109810.0,109800.0,0.6622419]
[1759028625971,0.48044477,109830.0,109800.0,0.6622419]
[1759028626138,8.0,109820.0,109800.0,0.6390219]
[1759028626551,8.0,109820.0,109800.0,0.6622419]
[1759028626965,8.0,109820.0,109800.0,0.6572419]
[1759028627314,8.0,109820.0,109800.0,0.6522419]
[1759028627519,8.0,109820.0,109800.0,0.6552419]
[1759028627983,8.0,109820.0,109800.0,0.6582419]
[1759028628486,8.0378772,109820.0,109800.0,0.6582419]
[1759028628723,8.0,109810.0,109800.0,0.6582419]
[1759028629159,8.0,109820.0,109800.0,0.6582419]
[1759028629357,8.0,109820.0,109800.0,0.6350219]
[1759028629569,8.0,109820.0,109800.0,0.6582419]
[1759028629907,8.01428783,109820.0,109800.0,0.6552419]
[1759028630109,8.0,109810.0,109800.0,0.6602419]
[1759028630329,8.0,109810.0,109800.0,0.6572419]
[1759028631190,8.0,109810.0,109800.0,0.6602419]
[1759028631373,8.0,109810.0,109800.0,0.6572419]
[1759028631873,7.77605037,109810.0,109800.0,0.6622419]
[1759028632050,0.05223918,109820.0,109810.0,0.04547]
[1759028632218,8.05864828,109820.0,109810.0,0.06811]
[1759028633599,8.05864828,109820.0,109810.0,0.07111]
[1759028634271,8.05864828,109820.0,109810.0,0.07411]
[1759028634558,8.05869475,109820.0,109810.0,0.07411]
[1759028634775,8.05869475,109820.0,109810.0,0.87907171]
[1759028634776,0.05228565,109820.0,109810.0,0.87907171]
[1759028635000,0.05228565,109820.0,109810.0,0.88825934]
[1759028635212,0.55228565,109820.0,109810.0,0.88825934]
[1759028635421,8.55228565,109820.0,109810.0,0.58344557]
[1759028635637,8.55228565,109820.0,109810.0,0.58044557]
[1759028635638,0.05228565,109820.0,109810.0,0.58044557]
[1759028635813,0.55228565,109820.0,109810.0,0.31594557]
[1759028636045,8.55228565,109820.0,109810.0,0.32494557]
[1759028636307,8.55228565,109820.0,109810.0,0.32194557]
[1759028636308,0.05228565,109820.0,109810.0,0.32194557]
[1759028636502,0.55228565,109820.0,109810.0,0.32194557]
[1759028636714,8.55228565,109820.0,109810.0,0.59644557]
[1759028636912,0.05228565,109820.0,109810.0,0.59644557]
[1759028637122,0.55228565,109820.0,109810.0,0.88016557]
[1759028637458,8.55228565,109820.0,109810.0,0.88016557]
[1759028637639,0.05228565,109820.0,109810.0,0.88016557]
[1759028637781,0.55228565,109820.0,109810.0,0.88016557]
[1759028637999,8.55228565,109820.0,109810.0,0.88016557]
[1759028638210,0.05228565,109820.0,109810.0,0.88016557]
[1759028638410,0.55228565,109820.0,109810.0,0.88016557]
[1759028638606,8.55228565,109820.0,109810.0,0.88016557]
[1759028638853,0.05228565,109820.0,109810.0,0.88016557]
[1759028640423,0.05228565,109820.0,109810.0,0.59644557]
[1759028640584,0.05228565,109820.0,109810.0,0.97508557]
[1759028644363,0.05228565,109820.0,109810.0,0.88012557]
[1759028644571,0.05228565,109820.0,109810.0,0.97504557]
[1759028646709,0.05228565,109820.0,109810.0,0.59644557]
[1759028647296,0.05228565,109820.0,109810.0,0.88012557]
[1759028649183,0.05228565,109820.0,109810.0,0.59644557]
[1759028649387,0.05228565,109820.0,109810.0,0.88012557]
[1759028653367,0.05228565,109820.0,109810.0,0.4143128]
[1759028653559,0.05228565,109820.0,109810.0,0.6928428]
[1759028653760,0.03799782,109820.0,109810.0,0.6928428]
[1759028654686,0.03799782,109820.0,109810.0,0.6828428]
[1759028654863,0.03799782,109820.0,109810.0,0.6738428]
[1759028655164,0.03799782,109820.0,109810.0,0.6878428]
[1759028656686,0.05228383,109820.0,109810.0,0.6878428]
[1759028659353,0.03799782,109820.0,109810.0,0.6878428]
[1759028660366,0.03799782,109820.0,109810.0,0.6929228]
[1759028662452,0.05228383,109820.0,109810.0,0.6929228]
[1759028666666,0.03799782,109820.0,109810.0,0.6929228]
[1759028671725,0.03799782,109820.0,109810.0,0.3740109]
[1759028671726,8.03799782,109820.0,109810.0,0.3740109]
[1759028671895,8.04440691,109820.0,109810.0,0.6576909]
[1759028672113,8.04440691,109820.0,109810.0,0.6878428]
[1759028672672,8.04440691,109820.0,109810.0,0.6829528]
[1759028672884,8.04440691,109820.0,109810.0,0.6859228]
[1759028673097,8.04440691,109820.0,109810.0,0.6899228]
[1759028673740,7.85680373,109820.0,109810.0,0.6899228]
[1759028673939,0.01968597,109830.0,109810.0,0.6899228]
[1759028674282,8.0,109820.0,109810.0,0.6829228]
[1759028674484,8.0064088,109820.0,109810.0,0.6829228]
[1759028674710,8.0064088,109820.0,109810.0,0.6879228]
[1759028674898,8.0064088,109820.0,109810.0,0.6789228]
[1759028675219,8.0064088,109820.0,109810.0,0.6829228]
[1759028675354,8.0064088,109820.0,109810.0,0.6799228]
[1759028675553,8.04270021,109820.0,109810.0,0.6789228]
[1759028675752,8.04270021,109820.0,109810.0,0.1357428]
[1759028675960,8.04270021,109820.0,109810.0,0.4234228]
[1759028677291,8.04270021,109820.0,109810.0,0.4204528]
[1759028679292,8.05698681,109820.0,109810.0,0.4204528]
[1759028679843,8.05698681,109820.0,109810.0,0.4234228]
[1759028686312,8.05699059,109820.0,109810.0,0.4234228]
[1759028686519,8.04270399,109820.0,109810.0,0.4234228]
[1759028687425,7.81774253,109820.0,109810.0,0.4234228]
[1759028687635,8.04270399,109820.0,109810.0,0.4234228]
[1759028689618,8.0569907,109820.0,109810.0,0.4234228]
[1759028695812,0.0569907,109820.0,109810.0,0.4234228]
[1759028696802,0.04270399,109820.0,109810.0,0.4234228]
[1759028698041,0.04270399,109820.0,109810.0,0.1397428]
[1759028698210,0.04270399,109820.0,109810.0,0.4234228]
[1759028699010,0.04270399,109820.0,109810.0,0.1397428]
[1759028699159,0.04270399,109820.0,109810.0,0.4234228]
[1759028699372,0.04270399,109820.0,109810.0,0.6879228]
[1759028699586,0.05699027,109820.0,109810.0,0.6879228]
[1759028700357,0.05699027,109820.0,109810.0,0.4042428]
[1759028700576,0.05699027,109820.0,109810.0,0.6828428]
[1759028701487,0.05699027,109820.0,109810.0,0.4012028]
[1759028701625,8.23910646,109820.0,109810.0,0.1045109]
[1759028701826,8.23910646,109820.0,109810.0,0.07711]
[1759028702466,8.52278646,109820.0,109810.0,0.07711]
[1759028703118,8.52278646,109820.0,109810.0,0.07311]
[1759028703541,8.52278646,109820.0,109810.0,0.07411]
[1759028703750,8.52278646,109820.0,109810.0,0.06911]
[1759028704122,8.52278646,109820.0,109810.0,0.07211]
[1759028705919,8.50850018,109820.0,109810.0,0.07211]
[1759028708481,8.22482018,109820.0,109810.0,0.07211]
[1759028708815,8.50850018,109820.0,109810.0,0.07211]
[1759028709116,8.52278791,109820.0,109810.0,0.07211]
[1759028709312,8.23910791,109820.0,109810.0,0.07211]
[1759028709608,8.52278791,109820.0,109810.0,0.07211]
[1759028711615,8.23910791,109820.0,109810.0,0.07211]
[1759028711834,8.52278791,109820.0,109810.0,0.07211]
[1759028713637,8.23910791,109820.0,109810.0,0.07211]
[1759028713839,8.34067172,109820.0,109810.0,0.07211]
[1759028714382,8.52278791,109820.0,109810.0,0.07211]
[1759028714705,8.52278453,109820.0,109810.0,0.07211]
[1759028716085,8.31897038,109820.0,109810.0,0.07211]
[1759028716259,7.85317419,109820.0,109810.0,0.07211]
[1759028716492,8.13685419,109820.0,109810.0,0.07211]
[1759028716897,8.31897038,109820.0,109810.0,0.07211]
[1759028718246,8.35625326,109820.0,109810.0,0.07211]
[1759028720941,8.34196553,109820.0,109810.0,0.07211]
[1759028724078,8.35625315,109820.0,109810.0,0.07211]
[1759028725356,8.07257315,109820.0,109810.0,0.07211]
[1759028725559,8.34196553,109820.0,109810.0,0.07211]
[1759028727453,8.34196807,109820.0,109810.0,0.07211]
[1759028728602,8.35625569,109820.0,109810.0,0.07211]
[1759028730337,7.8904595,109820.0,109810.0,0.1073219]
[1759028730925,8.1741395,109820.0,109810.0,0.1073219]
[1759028731279,7.8904595,109820.0,109810.0,0.1073219]
[1759028731520,8.1741395,109820.0,109810.0,0.1073219]
[1759028731741,7.89046328,109820.0,109810.0,0.1073219]
[1759028732143,7.89046328,109820.0,109810.0,0.13472646]
[1759028732887,8.17414328,109820.0,109810.0,0.13472646]
[1759028733710,7.89046328,109820.0,109810.0,0.13472646]
[1759028733896,8.17414328,109820.0,109810.0,0.13472646]
[1759028735178,7.95724915,109820.0,109810.0,0.13472646]
[1759028738193,7.95506703,109820.0,109810.0,0.13472646]
[1759028738420,8.13718322,109820.0,109810.0,0.13472646]
[1759028738631,8.13718322,109820.0,109810.0,0.1073219]
[1759028739617,8.13718322,109820.0,109810.0,0.07211]
[1759028740034,8.1228956,109820.0,109810.0,0.07211]
[1759028742769,8.1228956,109820.0,109810.0,0.02664]
[1759028742979,8.13935051,109820.0,109810.0,0.02664]
[1759028743193,8.16676022,109820.0,109810.0,0.02664]
[1759028744007,8.16459343,109820.0,109810.0,0.02564]
[1759028744400,8.16658914,109820.0,109810.0,0.02564]
[1759028746442,7.98224219,109820.0,109810.0,0.02564]
[1759028748925,8.07716219,109820.0,109810.0,0.02564]
[1759028749193,8.06287407,109820.0,109810.0,0.02564]
[1759028750407,8.06508083,109820.0,109810.0,0.02564]
[1759028750812,8.06516083,109820.0,109810.0,0.02564]
[1759028752148,8.0794501,109820.0,109810.0,0.02564]
[1759028754690,8.07724334,109820.0,109810.0,0.02564]
[1759028755093,7.69856334,109820.0,109810.0,0.02564]
[1759028755299,8.07724334,109820.0,109810.0,0.02564]
[1759028757328,7.69855485,109820.0,109810.0,0.02564]
[1759028757554,8.07723485,109820.0,109810.0,0.02564]
[1759028758509,8.06294558,109820.0,109810.0,0.02564]
[1759028761558,7.69855481,109820.0,109810.0,0.02564]
[1759028761759,8.07719481,109820.0,109810.0,0.02564]
[1759028766580,8.06290558,109820.0,109810.0,0.02564]
[1759028769415,7.96798558,109820.0,109810.0,0.02564]
[1759028769624,8.06290558,109820.0,109810.0,0.02564]
[1759028769838,8.07719485,109820.0,109810.0,0.02564]
[1759028776185,8.10935967,109820.0,109810.0,0.02564]
[1759028776995,7.69855485,109820.0,109810.0,0.02564]
[1759028777197,8.07719485,109820.0,109810.0,0.02564]
[1759028778923,7.69855485,109820.0,109810.0,0.02564]
[1759028779123,8.07719485,109820.0,109810.0,0.02564]
[1759028779910,7.68426558,109820.0,109810.0,0.02564]
[1759028780131,8.06290558,109820.0,109810.0,0.02564]
[1759028782904,8.07719511,109820.0,109810.0,0.02564]
[1759028785732,7.98228978,109820.0,109810.0,0.02564]
[1759028785933,8.07720978,109820.0,109810.0,0.02564]
[1759028786568,8.06292025,109820.0,109810.0,0.02564]
[1759028789014,8.06292025,109820.0,109810.0,0.02264]
[1759028789647,8.07720974,109820.0,109810.0,0.02264]
[1759028790974,8.07720983,109820.0,109810.0,0.02264]
[1759028791579,7.69856983,109820.0,109810.0,0.02756]
[1759028791772,8.07720983,109820.0,109810.0,0.02462]
[1759028794936,8.07720983,109820.0,109810.0,0.02662]
[1759028797421,7.69856983,109820.0,109810.0,0.02956]
[1759028797627,7.96800034,109820.0,109810.0,0.07503]
[1759028797834,7.50216415,109820.0,109810.0,0.07503]
[1759028798035,7.75847444,109820.0,109810.0,0.07503]
[1759028799163,7.75847444,109820.0,109810.0,0.07303]
[1759028799594,7.75847444,109820.0,109810.0,0.07703]
[1759028800344,7.75647444,109820.0,109810.0,0.07703]
[1759028800552,7.77076224,109820.0,109810.0,0.07903]
[1759028803540,7.95287843,109820.0,109810.0,0.07903]
[1759028812763,7.93859063,109820.0,109810.0,0.07903]
[1759028815686,7.95287844,109820.0,109810.0,0.07903]
[1759028820313,7.95286545,109820.0,109810.0,0.07903]
[1759028820867,7.93857764,109820.0,109810.0,0.07903]
[1759028821280,7.93853764,109820.0,109810.0,0.07903]
[1759028822554,7.75769825,109820.0,109810.0,0.07903]
[1759028823815,7.77198621,109820.0,109810.0,0.07903]
[1759028830354,7.75769825,109820.0,109810.0,0.07903]
[1759028831963,7.75771106,109820.0,109810.0,0.07903]
[1759028833330,7.48831902,109820.0,109810.0,0.07903]
[1759028833545,7.77199902,109820.0,109810.0,0.07903]
[1759028836103,7.60802852,109820.0,109810.0,0.07903]
[1759028836300,7.60802863,109820.0,109810.0,0.07903]
[1759028837239,7.60802869,109820.0,109810.0,0.07903]
[1759028840767,7.32434869,109820.0,109810.0,0.07903]
[1759028840974,7.60802869,109820.0,109810.0,0.07903]
[1759028843290,7.59374073,109820.0,109810.0,0.07903]
[1759028844757,7.59374139,109820.0,109810.0,0.07903]
[1759028846068,7.60802935,109820.0,109810.0,0.07903]
[1759028846476,7.59374139,109820.0,109810.0,0.07903]
[1759028847332,7.59374139,109820.0,109810.0,0.02864]
[1759028847690,7.59596565,109820.0,109810.0,0.02864]
[1759028847906,7.62337683,109820.0,109810.0,0.02864]
[1759028848199,7.62337683,109820.0,109810.0,0.02664]
[1759028848413,7.62437339,109820.0,109810.0,0.02264]
[1759028849054,7.62337339,109820.0,109810.0,0.02264]
[1759028849381,7.62737339,109820.0,109810.0,0.02264]
[1759028849563,7.64166284,109820.0,109810.0,0.02264]
[1759028849790,7.64166284,109820.0,109810.0,0.02464]
[1759028850003,7.64166284,109820.0,109810.0,0.02264]
[1759028851884,7.65696658,109820.0,109810.0,0.02264]
[1759028852096,7.67860983,109820.0,109810.0,0.02264]
[1759028852529,7.67868983,109820.0,109810.0,0.02264]
[1759028852755,7.39492983,109820.0,109810.0,0.02264]
[1759028852968,7.77360983,109820.0,109810.0,0.02264]
[1759028853202,7.39270557,109820.0,109810.0,0.02264]
[1759028853416,7.75608183,109820.0,109810.0,0.02264]